bitfinex-derivatives/quotes_ETHF0:USTF0_20250317
["timestamp","ask_amount","ask_price","bid_price","bid_amount"]
[1742250381326,3.23123408,1939.3,1939.2,2.53267653]
[1742250381522,2.37522154,1939.3,1939.2,2.53267653]
[1742250383923,2.37522154,1939.3,1939.2,1.50124653]
[1742250384124,2.37522154,1939.3,1939.2,2.53267653]
[1742250387227,2.37522154,1939.3,1939.2,1.50124653]
[1742250387429,6.43946923,1939.3,1939.2,0.13984653]
[1742250387732,1.03159,1938.9,1938.8,3.2078]
[1742250388234,3.34,1939.0,1938.9,1.03159]
[1742250388436,4.37158,1939.0,1938.9,1.03159]
[1742250388637,4.37158,1939.0,1938.9,2.40149]
[1742250390636,4.37158,1939.0,1938.9,1.3699]
[1742250390837,4.37158,1939.0,1938.9,2.40149]
[1742250391040,5.68038,1939.0,1938.9,2.40149]
[1742250391338,3.34,1939.0,1938.9,2.40149]
[1742250391838,1.3088,1939.1,1939.0,1.03154]
[1742250391839,1.03148,1939.1,1939.0,1.03154]
[1742250392040,1.9906,1939.2,1939.1,1.03148]
[1742250392242,1.03143,1939.2,1939.1,1.03148]
[1742250392538,2.34023,1939.2,1939.1,2.37798]
[1742250392943,2.34023,1939.2,1939.1,1.3465]
[1742250393742,3.19518665,1939.2,1939.1,2.37798]
[1742250394238,2.34023,1939.2,1939.1,2.37798]
[1742250394841,3.19514125,1939.2,1939.1,1.3465]
[1742250398236,2.16371125,1939.2,1939.1,2.37798]
[1742250398443,3.21556279,1939.3,1939.2,1.03143]
[1742250398646,2.36065154,1939.3,1939.2,3.08303]
[1742250399545,2.36065154,1939.3,1939.2,2.0516]
[1742250399744,2.36065154,1939.3,1939.2,1.3985]
[1742250400546,2.36065154,1939.3,1938.9,5.91888]
[1742250400547,1.03159,1939.0,1938.9,1.03153]
[1742250400846,1.03159,1939.0,1938.9,1.72323]
[1742250401842,1.4409,1939.0,1938.9,3.16213]
[1742250402540,2.47244,1939.0,1938.9,3.16213]
[1742250403742,1.03154,1939.0,1938.9,3.16213]
[1742250404343,2.47244,1939.1,1939.0,1.03154]
[1742250404646,2.47244,1939.1,1939.0,2.47044]
[1742250407748,2.47244,1939.1,1939.0,1.4389]
[1742250408849,2.47244,1939.1,1939.0,2.47044]
[1742250412553,2.47244,1939.1,1939.0,1.4389]
[1742250413550,2.47244,1939.1,1939.0,2.47044]
[1742250415253,2.47244,1939.1,1939.0,1.4389]
[1742250417053,2.47244,1939.1,1939.0,2.47044]
[1742250419753,41.4922,1939.2,1939.0,2.47044]
[1742250419956,46.50835,1939.2,1939.1,2.46638]
[1742250420147,44.02454459,1939.2,1939.1,3.16738]
[1742250420353,3.22454459,1939.2,1939.1,3.16738]
[1742250423360,0.00774154,1939.3,1939.2,1.03143]
[1742250423656,0.00774154,1939.3,1939.2,3.04673]
[1742250425256,1.03912154,1939.3,1939.2,3.04673]
[1742250425858,2.45562154,1939.3,1939.2,3.04673]
[1742250427858,2.45562154,1939.3,1939.2,1.3163]
[1742250428156,3.14732154,1939.3,1939.2,1.3163]
[1742250428955,3.14732154,1939.3,1939.2,2.34773]
[1742250429253,3.14732154,1939.3,1939.2,1.3163]
[1742250430360,3.14732154,1939.3,1939.2,2.34773]
[1742250431360,3.14732154,1939.3,1939.2,1.3163]
[1742250432661,3.14732154,1939.3,1939.2,2.34773]
[1742250437960,3.14732154,1939.3,1939.2,1.3163]
[1742250439256,3.14732154,1939.3,1939.2,2.34773]
[1742250439469,3.14732154,1939.3,1939.2,1.3163]
[1742250442158,3.14732154,1939.3,1939.2,2.34773]
[1742250442960,2.45562154,1939.3,1939.2,2.34773]
[1742250444063,2.45562154,1939.3,1939.2,3.06203]
[1742250447767,0.00774154,1939.3,1939.2,6.26983]
[1742250448262,1.03912154,1939.3,1939.2,6.26983]
[1742250448459,0.00774154,1939.3,1939.2,6.26983]
[1742250448656,1.03912154,1939.3,1939.2,6.26983]
[1742250449969,2.45422154,1939.3,1939.2,6.26983]
[1742250458369,1.42284154,1939.3,1939.2,6.26983]
[1742250458975,2.45422154,1939.3,1939.2,6.26983]
[1742250459679,1.03912154,1939.3,1939.2,6.26983]
[1742250459978,0.00774154,1939.3,1939.2,6.26983]
[1742250461377,1.03912154,1939.3,1939.2,6.26983]
[1742250462979,2.41882154,1939.3,1939.2,6.26983]
[1742250463986,2.41882154,1939.3,1939.2,5.55553]
[1742250464187,1.03148,1939.1,1939.0,3.8971]
[1742250464386,1.03148,1939.1,1939.0,4.23934]
[1742250464686,2.41118,1939.1,1939.0,4.23934]
[1742250464985,2.41118,1939.1,1939.0,4.93294]
[1742250467190,1.3797,1939.1,1939.0,4.93294]
[1742250467488,5.06223,1939.2,1939.1,1.03148]
[1742250467787,3.11833,1939.2,1939.1,1.03148]
[1742250468085,3.11833,1939.2,1939.1,2.35728]
[1742250468278,1.3931,1939.2,1939.1,2.35728]
[1742250468486,1.40084154,1939.3,1939.2,1.03143]
[1742250468683,1.40084154,1939.3,1939.2,5.56503]
[1742250470691,2.43222154,1939.3,1939.2,5.56503]
[1742250474384,2.43222154,1939.3,1939.2,4.5336]
[1742250474585,2.43222154,1939.3,1939.2,1.3258]
[1742250475390,3.78122154,1939.3,1939.2,1.3258]
[1742250476591,3.78122154,1939.3,1939.2,5.56503]
[1742250476795,1.03132,1939.5,1939.4,1.03127]
[1742250477594,2.35722,1939.5,1939.4,2.47047]
[1742250477890,1.03138,1939.3,1939.2,3.2078]
[1742250478093,1.03138,1939.3,1939.2,4.2392]
[1742250478494,1.74768,1939.3,1939.2,4.2392]
[1742250478893,2.42938,1939.3,1939.2,4.2392]
[1742250479188,2.42938,1939.3,1939.2,3.2078]
[1742250479393,2.42938,1939.3,1939.2,4.5415]
[1742250479791,3.76018,1939.3,1939.2,4.5415]
[1742250479991,3.76018,1939.3,1939.2,1.3337]
[1742250481900,1.03148,1939.1,1939.0,4.2393]
[1742250483391,2.43978,1939.1,1939.0,5.5597]
[1742250487898,1.03148,1939.1,1939.0,5.5597]
[1742250488398,1.03148,1939.1,1939.0,4.5282]
[1742250488791,1.03148,1939.1,1939.0,1.3204]
[1742250489395,1.03148,1939.1,1939.0,2.35194]
[1742250489600,1.03148,1939.1,1939.0,1.3204]
[1742250490089,2.35688,1939.1,1939.0,1.3204]
[1742250490291,2.35688,1939.1,1939.0,2.35194]
[1742250490492,2.35688,1939.1,1939.0,5.55974]
[1742250490891,9.89107,1939.3,1939.1,1.03148]
[1742250490892,1.03147,1939.2,1939.1,1.03148]
[1742250491099,2.44087,1939.2,1939.1,2.40428]
[1742250492995,1.03148,1939.1,1939.0,3.2078]
[1742250493301,1.4094,1939.1,1939.0,2.40434]
[1742250494302,2.44088,1939.1,1939.0,2.40434]
[1742250494503,2.44088,1939.1,1939.0,1.3728]
[1742250495401,2.44088,1939.1,1939.0,2.40434]
[1742250495601,1.03148,1939.1,1939.0,5.61214]
[1742250495803,2.44008,1939.1,1939.0,5.61214]
[1742250497698,1.03148,1939.1,1939.0,5.61214]
[1742250499406,1.03148,1939.1,1939.0,2.40434]
[1742250503807,1.03148,1939.1,1939.0,1.3728]
[1742250504008,1.03148,1939.1,1939.0,2.40434]
[1742250504507,2.37358,1939.1,1939.0,2.40434]
[1742250507201,1.03148,1939.1,1939.0,2.40434]
[1742250507407,2.40528,1939.2,1939.1,1.03148]
[1742250507598,2.40528,1939.2,1939.1,2.38188]
[1742250508302,2.40528,1939.2,1939.1,3.07778]
[1742250510810,2.40528,1939.2,1939.1,1.3504]
[1742250511015,3.97746293,1939.2,1939.1,1.3504]
[1742250511812,3.12158,1939.2,1939.1,1.3504]
[1742250512513,3.12158,1939.2,1939.1,2.38188]
[1742250512906,3.97749616,1939.2,1939.1,1.3504]
[1742250513715,3.97749616,1939.2,1939.1,2.38188]
[1742250513914,3.12158,1939.2,1939.1,2.38188]
[1742250514719,2.40528,1939.2,1939.1,2.38188]
[1742250517022,2.40528,1939.2,1939.1,1.3504]
[1742250518521,2.40528,1939.2,1939.0,1.0315]
[1742250518522,1.03148,1939.1,1939.0,1.0315]
[1742250518716,3.09928,1939.1,1939.0,1.3597]
[1742250521112,3.95522456,1939.1,1939.0,1.3597]
[1742250521722,1.03164,1938.8,1938.7,1.73377]
[1742250522021,1.03164,1938.8,1938.7,1.7338]
[1742250523012,2.36974,1938.8,1938.7,3.0906]
[1742250525023,1.03164,1938.8,1938.7,3.0906]
[1742250525223,2.34094,1938.8,1938.7,6.2984]
[1742250529424,2.34094,1938.8,1938.7,2.0589]
[1742250529724,3.02074,1938.8,1938.7,1.3568]
[1742250534826,3.02074,1938.8,1938.7,2.3885]
[1742250535224,1.03164,1938.8,1938.7,2.3885]
[1742250535525,2.45914,1938.8,1938.7,2.3885]
[1742250538524,1.4275,1938.8,1938.7,2.3885]
[1742250538723,1.03163,1938.9,1938.8,1.03159]
[1742250538924,2.41443,1938.9,1938.8,3.83919]
[1742250540129,2.41443,1938.9,1938.8,1.4399]
[1742250540323,3.10133,1938.9,1938.8,2.47154]
[1742250540732,2.41443,1938.9,1938.8,2.47154]
[1742250542928,2.41443,1938.9,1938.8,3.18114]
[1742250550543,3.26982556,1938.9,1938.8,3.18114]
[1742250551039,2.41443,1938.9,1938.8,3.18114]
[1742250551235,3.26986942,1938.9,1938.8,3.18114]
[1742250551536,2.41443,1938.9,1938.8,2.1495]
[1742250551738,3.26994495,1938.9,1938.8,2.1495]
[1742250552332,3.94624495,1938.9,1938.8,2.1495]
[1742250552632,3.94624495,1938.9,1938.8,3.18114]
[1742250553031,3.94624495,1938.9,1938.8,2.1495]
[1742250553839,3.94624495,1938.9,1938.8,1.4399]
[1742250554548,3.94624495,1938.9,1938.8,2.47154]
[1742250554741,3.94624495,1938.9,1938.8,1.4399]
[1742250555643,3.26994495,1938.9,1938.8,2.47154]
[1742250557744,3.26994495,1938.9,1938.8,3.14344]
[1742250558041,0.85551495,1938.9,1938.8,3.14344]
[1742250558243,3.27441177,1939.0,1938.9,1.03159]
[1742250558437,3.27441177,1939.0,1938.9,3.06529]
[1742250559134,2.41884,1939.0,1938.9,3.06529]
[1742250559335,3.274332,1939.0,1938.9,3.06529]
[1742250560135,2.41884,1939.0,1938.9,3.06529]
[1742250560435,3.27424576,1939.0,1938.9,3.06529]
[1742250560636,3.27427049,1939.0,1938.9,3.06529]
[1742250560845,3.27426229,1939.0,1938.9,3.06529]
[1742250561638,2.41884,1939.0,1938.9,3.06529]
[1742250571257,1.74817,1939.2,1939.1,1.03148]
[1742250571448,3.12657,1939.2,1939.1,4.23928]
[1742250571643,1.03147,1939.2,1939.1,4.23928]
[1742250571848,3.26518936,1939.3,1939.2,1.03143]
[1742250572049,2.40982,1939.3,1939.2,3.08503]
[1742250575356,2.40982,1939.3,1939.2,2.43153]
[1742250578071,2.40982,1939.3,1939.2,1.4001]
[1742250578460,2.40982,1939.3,1939.2,2.43153]
[1742250578966,2.40982,1939.3,1939.2,1.4001]
[1742250580766,2.40982,1939.3,1939.2,2.43153]
[1742250580970,2.40982,1939.3,1939.2,1.4001]
[1742250581465,2.40982,1939.3,1939.2,2.43153]
[1742250589676,2.40982,1939.3,1939.2,1.4001]
[1742250590072,6.59708739,1939.3,1939.2,1.4001]
[1742250590376,47.39708739,1939.3,1939.2,1.4001]
[1742250590571,1.03148,1939.1,1939.0,1.71493]
[1742250590777,1.03148,1939.1,1939.0,2.42943]
[1742250590978,2.34908,1939.1,1939.0,2.42943]
[1742250593180,2.34908,1939.1,1939.0,1.3979]
[1742250595084,2.34908,1939.1,1939.0,2.42944]
[1742250595286,2.34908,1939.1,1939.0,1.3979]
[1742250597582,1.03164,1938.8,1938.7,4.92397]
[1742250597784,1.03164,1938.8,1938.7,5.62107]
[1742250598883,2.46044,1938.8,1938.7,6.99957]
[1742250600384,0.6722,1938.9,1938.7,6.99957]
[1742250600589,2.39584,1938.9,1938.8,2.35504]
[1742250601789,1.03158,1939.0,1938.9,1.03154]
[1742250601986,2.39578,1939.0,1938.9,3.02844]
[1742250604391,4.36252,1939.1,1939.0,1.03154]
[1742250604691,5.79022,1939.1,1939.0,2.42794]
[1742250605086,2.45922,1939.1,1939.0,2.42794]
[1742250608197,2.45922,1939.1,1939.0,1.3964]
[1742250608792,2.45922,1939.1,1939.0,2.42794]
[1742250608793,3.11482,1939.1,1939.0,2.42794]
[1742250608991,3.11482,1939.1,1939.0,1.3964]
[1742250609590,3.11482,1939.1,1939.0,2.42794]
[1742250610096,3.11482,1939.1,1939.0,1.3964]
[1742250610289,3.11482,1939.1,1939.0,2.42794]
[1742250610598,2.45922,1939.1,1939.0,2.42794]
[1742250613503,0.6876,1939.2,1939.1,1.03148]
[1742250613696,40.8,1939.3,1939.2,1.03143]
[1742250613697,4.7743,1939.3,1939.2,1.03143]
[1742250613999,1.4433,1939.3,1939.2,1.71673]
[1742250614294,1.4433,1939.3,1939.2,3.03283]
[1742250614691,2.47468,1939.3,1939.2,3.03283]
[1742250615897,1.03138,1939.3,1939.2,3.03283]
[1742250616294,3.21554154,1939.6,1939.3,2.57845]
[1742250616492,1.03127,1939.5,1939.4,2.42872]
[1742250616800,1.03127,1939.5,1939.4,3.14502]
[1742250617298,2.44907,1939.5,1939.4,3.14502]
[1742250618902,1.03127,1939.5,1939.4,3.14502]
[1742250620604,2.14624154,1939.6,1939.5,1.03127]
[1742250620605,0.00774154,1939.6,1939.5,1.03127]
[1742250620802,0.00774154,1939.6,1939.5,3.13527]
[1742250621203,1.03896154,1939.6,1939.5,6.34307]
[1742250621400,0.00774154,1939.6,1939.5,6.34307]
[1742250623099,1.03113,1939.8,1939.7,1.03116]
[1742250623600,2.4742,1939.9,1939.8,1.03111]
[1742250623996,1.4431,1939.9,1939.8,1.03111]
[1742250624197,2.47416,1939.9,1939.8,1.72861]
[1742250624494,2.47416,1939.9,1939.8,3.15421]
[1742250625307,1.75126154,1940.0,1939.9,1.03106]
[1742250625503,3.05876154,1940.0,1939.9,2.36136]
[1742250626799,3.05876154,1940.0,1939.9,1.3303]
[1742250627201,1.03111,1939.8,1939.7,1.03888154]
[1742250627905,1.72001,1939.8,1939.7,1.03888154]
[1742250628410,1.72001,1939.8,1939.7,0.00774154]
[1742250628602,1.72001,1939.8,1939.7,2.42870154]
[1742250629310,1.72001,1939.8,1939.7,1.39754154]
[1742250629907,1.72001,1939.8,1939.7,2.42870154]
[1742250631607,1.72001,1939.8,1939.7,1.39754154]
[1742250632010,1.72001,1939.8,1939.7,2.42870154]
[1742250632510,1.72001,1939.8,1939.7,1.39754154]
[1742250633411,1.72001,1939.8,1939.7,0.00774154]
[1742250633799,3.08871,1939.8,1939.7,0.00774154]
[1742250634213,6.41771,1939.8,1939.7,0.00774154]
[1742250638712,6.41771,1939.8,1939.7,1.03890154]
[1742250638915,6.41771,1939.8,1939.7,1.38004154]
[1742250639718,6.41771,1939.8,1939.7,2.41120154]
[1742250639914,2.39981,1939.8,1939.7,2.41120154]
[1742250640219,1.03106,1939.9,1939.8,1.03106]
[1742250640420,2.47096,1939.9,1939.8,3.09466]
[1742250643523,1.4399,1939.9,1939.8,3.09466]
[1742250643922,2.47096,1939.9,1939.8,3.09466]
[1742250645021,1.03106,1939.9,1939.8,3.09466]
[1742250645523,2.42469154,1940.0,1939.9,1.03106]
[1742250645722,2.42469154,1940.0,1939.9,2.40826]
[1742250646523,3.28000049,1940.0,1939.9,2.40826]
[1742250647226,3.2799798,1940.0,1939.9,1.3772]
[1742250647423,3.2799798,1940.0,1939.9,2.40826]
[1742250647723,3.2799798,1940.0,1939.9,1.3772]
[1742250649023,3.2799798,1940.0,1939.9,2.40826]
[1742250653829,3.2799798,1940.0,1939.9,1.3772]
[1742250656531,3.2799798,1940.0,1939.9,2.40826]
[1742250657334,3.2799798,1940.0,1939.9,1.3772]
[1742250658429,1.03111,1939.8,1939.7,4.24670154]
[1742250659436,1.03108,1939.9,1939.8,1.03106]
[1742250659732,2.45348,1939.9,1939.8,2.45506]
[1742250663035,2.45348,1939.9,1939.8,2.45511]
[1742250663334,2.45348,1939.9,1939.8,1.424]
[1742250664032,3.17328,1939.9,1939.8,1.424]
[1742250664230,1.03111,1939.8,1939.7,0.00774154]
[1742250664429,3.08411,1939.8,1939.7,1.39704154]
[1742250664630,3.93892238,1939.8,1939.7,1.39704154]
[1742250665422,3.93892238,1939.8,1939.7,0.00774154]
[1742250668030,1.03132,1939.4,1939.3,9.57616543]
[1742250668225,1.03132,1939.4,1939.3,6.36836543]
[1742250668432,2.37622,1939.4,1939.3,6.36836543]
[1742250669236,1.03138,1939.3,1939.2,2.35596154]
[1742250669439,2.42578,1939.3,1939.2,1.32454154]
[1742250669942,1.03131,1939.5,1939.4,1.03127]
[1742250670135,2.43911,1939.5,1939.4,1.03127]
[1742250670338,2.43911,1939.5,1939.4,3.13517]
[1742250672237,2.43911,1939.5,1939.4,1.3868]
[1742250672433,3.81701,1939.5,1939.4,1.3868]
[1742250673035,7.02481,1939.5,1939.4,1.3868]
[1742250673238,3.81701,1939.5,1939.4,1.3868]
[1742250673439,6.35791,1939.5,1939.4,2.41812]
[1742250673641,3.15011,1939.5,1939.4,2.41812]
[1742250674142,3.15011,1939.5,1939.4,3.12372]
[1742250675642,3.15011,1939.5,1939.4,2.0924]
[1742250683647,3.15011,1939.5,1939.4,3.12372]
[1742250685650,2.43911,1939.5,1939.4,3.12372]
[1742250686046,3.2078,1939.7,1939.5,2.57818]
[1742250686247,1.03118,1939.7,1939.6,1.72472]
[1742250686454,1.03118,1939.7,1939.6,3.09202]
[1742250686753,2.45396,1939.8,1939.7,1.03116]
[1742250686953,2.45396,1939.8,1939.7,3.09536]
[1742250690355,2.45396,1939.8,1939.7,2.0642]
[1742250691052,2.45396,1939.8,1939.7,3.09536]
[1742250691251,1.03116,1939.8,1939.7,3.09536]
[1742250691650,2.34916,1939.8,1939.7,3.09536]
[1742250693146,1.03116,1939.8,1939.7,3.09536]
[1742250694650,1.03108,1939.9,1939.8,1.03111]
[1742250694850,1.03108,1939.9,1939.8,2.44111]
[1742250695054,2.40118,1939.9,1939.8,2.44111]
[1742250696058,2.40118,1939.9,1939.8,1.41]
[1742250696455,2.40118,1939.9,1939.8,2.44111]
[1742250699661,2.40118,1939.9,1939.8,1.41]
[1742250700559,2.40118,1939.9,1939.8,2.44111]
[1742250702354,2.40118,1939.9,1939.8,1.41]
[1742250704267,2.40118,1939.9,1939.8,2.44111]
[1742250705660,2.40118,1939.9,1939.8,1.41]
[1742250710569,2.40118,1939.9,1939.8,2.44111]
[1742250710965,2.40118,1939.9,1939.8,1.41]
[1742250713165,3.25379402,1939.9,1939.8,1.41]
[1742250713666,2.40118,1939.9,1939.8,2.44111]
[1742250714171,3.25404059,1939.9,1939.8,2.44111]
[1742250715265,17.10252747,1940.0,1939.9,1.03106]
[1742250715266,11.53143747,1940.0,1939.9,1.03106]
[1742250715465,12.38453652,1940.0,1939.9,3.02736]
[1742250716662,13.80833652,1940.0,1939.9,3.02736]
[1742250716866,13.80833652,1940.0,1939.9,1.9963]
[1742250718577,13.80833652,1940.0,1939.9,3.02736]
[1742250719078,14.52303652,1940.0,1939.9,1.9963]
[1742250719270,14.52303652,1940.0,1939.9,3.02736]
[1742250719470,14.52303652,1940.0,1939.9,1.9963]
[1742250719880,14.52303652,1940.0,1939.9,3.02736]
[1742250720071,14.52303652,1940.0,1939.9,1.9963]
[1742250720778,14.52303652,1940.0,1939.9,3.02736]
[1742250720977,14.52303652,1940.0,1939.9,1.3448]
[1742250721276,15.19053652,1940.0,1939.9,1.3448]
[1742250722278,2.57779,1939.8,1939.5,1.03124]
[1742250722582,1.03127,1939.5,1939.4,2.4383]
[1742250722878,1.03127,1939.5,1939.4,1.407]
[1742250723083,1.03138,1939.4,1939.3,1.03137]
[1742250723270,1.03138,1939.3,1939.2,5.65392154]
[1742250724479,2.38588,1939.3,1939.2,7.06402154]
[1742250725875,2.38588,1939.3,1939.2,3.85627154]
[1742250728791,1.03138,1939.3,1939.2,3.85627154]
[1742250730799,1.03138,1939.3,1939.2,3.15457154]
[1742250731097,2.40038,1939.3,1939.2,2.12314154]
[1742250731294,2.40038,1939.3,1939.2,3.15457154]
[1742250731499,3.11048,1939.3,1939.2,2.12314154]
[1742250732400,3.11048,1939.3,1939.2,3.15457154]
[1742250733101,3.11048,1939.3,1939.2,2.12314154]
[1742250733400,3.11048,1939.3,1939.2,3.15457154]
[1742250734093,3.11048,1939.3,1939.2,2.12314154]
[1742250735601,3.11048,1939.3,1939.2,1.41784154]
[1742250736700,1.03154,1939.0,1938.9,1.03156]
[1742250737893,2.36604,1939.0,1938.9,2.34456]
[1742250738098,2.36604,1939.0,1938.9,1.313]
[1742250738501,3.02874,1939.0,1938.9,1.313]
[1742250738701,1.03159,1938.9,1938.8,0.00774154]
[1742250738901,2.36609,1938.9,1938.8,1.32074154]
[1742250741399,2.36609,1938.9,1938.8,2.35238154]
[1742250741597,1.03159,1938.9,1938.8,3.07508154]
[1742250743610,2.33469,1938.9,1938.8,3.07508154]
[1742250748005,0.6614,1939.1,1938.8,5.65407154]
[1742250748211,2.39162,1939.1,1939.0,1.03154]
[1742250748607,2.39162,1939.1,1939.0,1.74934]
[1742250751414,1.03154,1939.0,1938.9,2.37667]
[1742250751614,2.40944,1939.0,1938.9,3.09747]
[1742250759412,2.40944,1939.0,1938.9,1.3451]
[1742250759916,2.40944,1939.0,1938.9,2.37669]
[1742250765229,3.07064,1939.0,1938.9,2.37669]
[1742250769125,2.0391,1939.0,1938.9,2.37669]
[1742250769320,1.8847392,1939.1,1939.0,1.03154]
[1742250769519,2.40839,1939.1,1939.0,3.06754]
[1742250769714,0.6573,1939.4,1939.1,1.03148]
[1742250769933,0.85328991,1939.5,1939.4,1.03132]
[1742250770221,1.03118,1939.7,1939.6,1.03116]
[1742250770527,2.40808,1939.7,1939.6,1.03116]
[1742250771227,2.40808,1939.7,1939.6,2.38156]
[1742250777031,45.15511,1939.9,1939.8,1.03111]
[1742250777323,2.45331,1939.9,1939.8,1.03111]
[1742250777726,2.45331,1939.9,1939.8,3.06021]
[1742250779433,2.45331,1939.9,1939.8,2.40841]
[1742250781733,2.45331,1939.9,1939.8,1.3773]
[1742250783736,2.45331,1939.9,1939.8,2.40841]
[1742250785134,1.03106,1939.9,1939.8,2.40841]
[1742250785838,0.00774154,1940.0,1939.9,1.03106]
[1742250786038,0.00774154,1940.0,1939.9,4.89236]
[1742250787938,0.00774154,1940.0,1939.9,6.33696]
[1742250792243,1.03875154,1940.0,1939.9,6.33696]
[1742250794245,0.00774154,1940.0,1939.9,6.33696]
[1742250794847,1.03875154,1940.0,1939.9,6.33696]
[1742250797442,0.00774154,1940.0,1939.9,6.33696]
[1742250797648,1.03875154,1940.0,1939.9,6.33696]
[1742250797844,0.00774154,1940.0,1939.9,6.33696]
[1742250798642,1.03875154,1940.0,1939.9,6.33696]
[1742250798843,1.44954154,1940.0,1939.9,6.33696]
[1742250799049,2.48055154,1940.0,1939.9,6.33696]
[1742250799746,1.44954154,1940.0,1939.9,6.33696]
[1742250800453,0.00774154,1940.0,1939.9,6.33696]
[1742250808449,1.32734154,1940.0,1939.9,6.33696]
[1742250808854,2.35835154,1940.0,1939.9,6.33696]
[1742250810351,1.32734154,1940.0,1939.9,6.33696]
[1742250810659,0.00774154,1940.0,1939.9,6.33696]
[1742250811257,2.42045154,1940.0,1939.9,6.33696]
[1742250812048,1.38944154,1940.0,1939.9,6.33696]
[1742250812253,10.6633752,1940.5,1940.1,1.03095]
[1742250812455,1.3817,1940.3,1940.2,1.9667]
[1742250812655,1.3817,1940.3,1940.2,2.6678]
[1742250813153,2.41256,1940.3,1940.2,2.9976]
[1742250813458,3.26459276,1940.3,1940.2,1.3043]
[1742250814357,1.0309,1940.2,1940.1,0.00774154]
[1742250814561,3.7598,1940.2,1940.1,1.03869154]
[1742250814757,4.61183276,1940.2,1940.1,0.00774154]
[1742250814952,4.61183276,1940.2,1940.1,1.03869154]
[1742250815155,4.61207789,1940.2,1940.1,0.00774154]
[1742250815963,4.61207789,1940.2,1940.1,1.03869154]
[1742250816254,4.61207789,1940.2,1940.1,1.35594154]
[1742250816461,4.61207789,1940.2,1940.1,2.38689154]
[1742250816848,4.61207789,1940.2,1940.1,1.35594154]
[1742250817253,4.61255135,1940.2,1940.1,2.38689154]
[1742250817453,4.61255135,1940.2,1940.1,1.35594154]
[1742250818155,4.61255135,1940.2,1940.1,0.00774154]
[1742250818356,7.93355135,1940.2,1940.1,0.00774154]
[1742250822155,7.93355135,1940.2,1940.1,1.38564154]
[1742250822768,7.93355135,1940.2,1940.1,2.41659154]
[1742250824564,2.22295135,1940.2,1940.1,2.41659154]
[1742250824964,1.3702,1940.2,1940.1,2.41659154]
[1742250825569,2.4011,1940.2,1940.1,2.41659154]
[1742250825970,2.4011,1940.2,1940.1,1.38564154]
[1742250826169,3.25372931,1940.2,1940.1,2.41659154]
[1742250826568,2.4011,1940.2,1940.1,2.41659154]
[1742250826776,3.25370235,1940.2,1940.1,2.41659154]
[1742250828169,3.25370235,1940.2,1940.1,1.38564154]
[1742250829567,3.25370235,1940.2,1940.1,2.41659154]
[1742250831377,2.4011,1940.2,1940.1,2.41659154]
[1742250831575,3.25370752,1940.2,1940.1,2.41659154]
[1742250831877,3.25368589,1940.2,1940.1,2.41659154]
[1742250833486,3.25368589,1940.2,1940.1,1.38564154]
[1742250836874,3.25368589,1940.2,1940.1,0.00774154]
[1742250852706,4.17258589,1940.2,1940.1,1.03869154]
[1742250853013,1.0309,1940.2,1940.1,1.70489154]
[1742250853310,1.0309,1940.2,1940.1,3.09679154]
[1742250853507,1.8835963,1940.3,1940.2,1.0309]
[1742250853814,0.86044784,1940.4,1940.3,1.03085]
[1742250854111,1.03853154,1940.4,1940.3,2.42275]
[1742250854303,0.00774154,1940.4,1940.3,2.42275]
[1742250854707,1.03079,1940.5,1940.4,1.03074]
[1742250855011,1.03079,1940.5,1940.4,3.11134]
[1742250857806,1.03079,1940.5,1940.4,2.0806]
[1742250858409,2.47499,1940.5,1940.4,2.0806]
[1742250863120,2.47499,1940.5,1940.4,1.3919]
[1742250865009,2.47499,1940.5,1940.4,2.42269]
[1742250866420,2.47499,1940.5,1940.4,1.3919]
[1742250869524,1.03085,1940.3,1940.2,3.874]
[1742250869723,1.03085,1940.3,1940.2,1.3331]
[1742250870219,1.71225,1940.3,1940.2,1.3331]
[1742250870426,3.09575,1940.3,1940.2,1.3331]
[1742250873023,3.09575,1940.3,1940.2,2.364]
[1742250873223,2.41435,1940.3,1940.2,2.364]
[1742250874828,2.41435,1940.3,1940.2,1.3331]
[1742250875426,2.41435,1940.3,1940.2,2.364]
[1742250875830,2.41435,1940.3,1940.2,1.3331]
[1742250876626,2.41435,1940.3,1940.2,2.364]
[1742250877129,1.03085,1940.3,1940.2,2.364]
[1742250878231,2.42511,1940.4,1940.3,1.03085]
[1742250878429,2.42511,1940.4,1940.3,2.43455]
[1742250878625,0.00774154,1940.6,1940.3,2.43455]
[1742250878938,1.03074,1940.5,1940.4,7.00405]
[1742250883234,2.43277154,1940.6,1940.5,1.03074]
[1742250883433,1.03847154,1940.6,1940.5,2.33274]
[1742250884135,2.40397154,1940.6,1940.5,2.33274]
[1742250885634,1.03847154,1940.6,1940.5,2.33274]
[1742250885933,0.00774154,1940.6,1940.5,2.33274]
[1742250887134,1.03843154,1940.6,1940.5,2.33274]
[1742250890931,1.03843154,1940.6,1940.5,1.302]
[1742250891327,2.39013154,1940.6,1940.5,1.302]
[1742250897747,2.39013154,1940.6,1940.5,2.33274]
[1742250897947,2.39013154,1940.6,1940.5,5.54054]
[1742250900343,2.39013154,1940.6,1940.5,4.5098]
[1742250900551,2.39013154,1940.6,1940.5,5.54054]
[1742250901448,2.39013154,1940.6,1940.5,4.5098]
[1742250901651,2.39013154,1940.6,1940.5,1.302]
[1742250902245,2.57691,1940.5,1940.2,0.6591]
[1742250902449,1.0309,1940.2,1940.1,0.00774154]
[1742250902648,1.0309,1940.2,1940.1,1.37164154]
[1742250904248,1.0309,1940.2,1940.1,0.00774154]
[1742250905446,2.3933,1940.2,1940.1,0.00774154]
[1742250906150,2.3933,1940.2,1940.1,1.34684154]
[1742250906360,2.3933,1940.2,1940.1,2.37779154]
[1742250907957,1.0309,1940.2,1940.1,2.37779154]
[1742250908152,1.0309,1940.2,1940.1,3.05749154]